Workbook

Sheet CMAQAlloc
A1: Jurisdiction | B1: UPC Number | C1: Project Name | D1: Year of Project Selection | E1: In Current FY 2024-2027 TIP | F1: In Current FY 2026-2031 SYIP | G1: Active Project | H1: FY-05 Allocation (For CMAQ, $100% Federal, or in some instances, a Local match, but no State match) | I1: FY-06 Allocation (Federal Share) | J1: FY-06 Allocation (State Match) | K1: FY-07 Allocation (Federal Share) | L1: FY-07 Allocation (State Match) | M1: FY-08 Allocation (Federal Share) | N1: FY-08 Allocation (State Match) | O1: FY-09 Allocation (Federal Share) | P1: FY-09 Allocation (State Match) | Q1: FY-10 Allocation (Federal Share) | R1: FY-10 Allocation (State Match) | S1: FY-11 Allocation (Federal Share) | T1: FY-11 Allocation (State Match) | U1: FY-12 Allocation (Federal Share) | V1: FY-12 Allocation (State Match) | W1: FY-13 Allocation (Federal Share) | X1: FY-13 Allocation (State Match) | Y1: FY-14 Allocation (Federal Share) | Z1: FY-14 Allocation (State Match) | AA1: FY-15 Allocation (Federal Share) | AB1: FY-15 Allocation (State Match) | AC1: FY-16 Allocation (Federal Share) | AD1: FY-16 Allocation (State Match) | AE1: FY-17 Allocation (Federal Share) | AF1: FY-17 Allocation (State Match) | AG1: FY-18 Allocation (Federal Share) | AH1: FY-18 Allocation (State Match) | AI1: FY-19 Allocation (Federal Share) | AJ1: FY-19 Allocation (State Match) | AK1: FY-20 Allocation (Federal Share) | AL1: FY-20 Allocation (State Match) | AM1: FY-21 Allocation (Federal Share) | AN1: FY-21 Allocation (State Match) | AO1: FY-22 Allocation (Federal Share) | AP1: FY-22 Allocation (State Match) | AQ1: FY-23 Allocation (Federal Share) | AR1: FY-23 Allocation (State Match) | AS1: FY-24 Allocation (Federal Share) | AT1: FY-24 Allocation (State Match) | AU1: FY-25 Allocation (Federal Share) | AV1: FY-25 Allocation (State Match) | AW1: FY-26 Allocation (Federal Share) | AX1: FY-26 Allocation (State Match) | AY1: FY-27 Allocation (Federal Share) | AZ1: FY-27 Allocation (State Match) | BA1: FY-28 Allocation (Federal Share) | BB1: FY-28 Allocation (State Match) | BC1: FY-29 Allocation (Federal Share) | BD1: FY-29 Allocation (State Match) | BE1: FY-30 Allocation (Federal Share) | BF1: FY-30 Allocation (State Match) | BG1: FY-31 Allocation (Federal Share) | BH1: FY-31 Allocation (State Match) | BI1: FY-32 Allocation (Federal Share) | BJ1: FY-32 Allocation (State Match) | BK1: Total CMAQ Allocations by Project Row
A2: Chesapeake | B2: 100538 | C2: Traffic Management Center and System Additions | D2: 2010 | E2: No | F2: No | G2: Closing | W2: =300000*0.8 -> 240000 | X2: =300000*0.2 -> 60000 | Y2: =1000000*0.8 -> 800000 | Z2: =1000000*0.2 -> 200000 | AA2: =(1000000-700000+400000)*0.8-34538 -> 525462 | AB2: =(1000000-700000+400000)*0.2-8635 -> 131365 | AC2: =(1000000-1000000)*0.8 -> 0 | AD2: =(1000000-1000000)*0.2 -> 0 | AE2: =(700000-700000)*0.8 -> 0 | AF2: =(700000-700000)*0.2 -> 0 | BK2: =SUM(H2:BJ2) -> 1956827
A3: Chesapeake | B3: 107032 | C3: Signal Timing Phase 2 | D3: 2014 | E3: Yes | F3: Yes | G3: Closing | H3: 18937 | AM3: =150000*0.8 -> 120000 | AN3: =150000*0.2 -> 30000 | AO3: =18937-18937 -> 0 | BK3: =SUM(H3:BJ3) -> 168937
A4: Chesapeake | B4: 107033 | C4: Signal Timing Phase 3 | D4: 2014 | E4: Yes | F4: No | G4: Closing | AM4: 120000 | AN4: 30000 | BK4: 150000
A5: Chesapeake | B5: 109418 | C5: Chesapeake Signal Timing and Incident Management Plans | D5: 2015 | E5: Yes | F5: Yes | G5: Closing | AO5: =150000*0.8 -> 120000 | AP5: =150000*0.2 -> 30000 | BK5: 150000
A6: Chesapeake | B6: 109803 | C6: Signal Timing Phase 1B (child project of UPC #106997) | D6: N/A child project | E6: Yes | F6: No | G6: Closing | AM6: =115000*0.8 -> 92000 | AN6: =115000*0.2 -> 23000 | BK6: 115000
A7: Chesapeake | B7: 110753 | C7: Great Bridge Boulevard Right Turn Lane | D7: 2016 | E7: Yes | F7: Yes | G7: Yes | AQ7: =550000*0.8-550000*0.8 -> 0 | AR7: =550000*0.2-550000*0.2 -> 0 | AS7: =500000*0.8-500000*0.8 -> 0 | AT7: =500000*0.2-500000*0.2 -> 0 | BK7: 0
A8: Chesapeake | B8: 110801 | C8: Chesapeake Signal System Upgrade with Feasibility Study | D8: 2016 | E8: Yes | F8: Yes | G8: Yes | R8: =60212-60212+60212 -> 60212 | AA8: 12482 | AB8: 3120 | AE8: =2573-2573+2573 -> 2573 | AF8: =643-643+643 -> 643 | AQ8: =80000*0.8 -> 64000 | AR8: =80000*0.2 -> 16000 | AS8: =220000*0.8 -> 176000 | AT8: =220000*0.2 -> 44000 | AU8: =200000*0.8+140000 -> 300000 | AV8: =200000*0.2+35000 -> 75000 | AW8: =140000 -> 140000 | AX8: =35000 -> 35000 | AY8: =444400+120000+140000+200000 -> 904400 | AZ8: =111100+30000+35000+50000 -> 226100 | BA8: =592800+420000+140000+200000-701682 -> 651118 | BB8: =148200+105000+35000+50000-175420 -> 162780 | BC8: =140000+200000 -> 340000 | BD8: =35000+50000 -> 85000 | BE8: =200000 -> 200000 | BF8: =50000 -> 50000 | BG8: =200000+250858 -> 450858 | BH8: =50000+62714 -> 112714 | BK8: 4112000
A9: Chesapeake | B9: 113828 | C9: Traffic Signal System Preemption Upgrade (child project of UPC 100606) | D9: N/A child project | E9: Yes | F9: No | G9: Closing | Y9: =150000*0.8 -> 120000 | Z9: =150000*0.2 -> 30000 | AA9: =(54000*0.8)-12482 -> 30718 | AB9: =(54000*0.2)-3120 -> 7680 | BK9: 188398
A10: Chesapeake | B10: 115369 | C10: Citywide Traffic Signal System Upgrade | D10: 2018 | E10: No | F10: No | G10: Canceled | AU10: =175000*0.8-140000 -> 0 | AV10: =175000*0.2-35000 -> 0 | AW10: =140000-140000 -> 0 | AX10: =35000-35000 -> 0 | AY10: =(175000*0.8)-140000 -> 0 | AZ10: =(175000*0.2)-35000 -> 0 | BA10: =(175000*0.8)-140000 -> 0 | BB10: =(175000*0.2)-35000 -> 0 | BC10: =140000-140000 -> 0 | BD10: =35000-35000 -> 0 | BK10: 0
A11: Chesapeake | B11: 115516 | C11: Battlefield Boulevard and Volvo Parkway Intersection Improvements | D11: 2018 | E11: Yes | F11: Yes | G11: Yes | AA11: 34538 | AB11: 8635 | AU11: =317500*0.8 -> 254000 | AV11: =317500*0.2 -> 63500 | AW11: 408000 | AX11: 102000 | BK11: 870673
A12: Chesapeake | B12: 115520 | C12: Chesapeake Signal Timing - All Phases | D12: 2018 | E12: Yes | F12: Yes | G12: Yes | AU12: =150000*0.8 -> 120000 | AV12: =150000*0.2 -> 30000 | AW12: 112500 | AX12: 37500 | AY12: =(150000*0.8) -> 120000 | AZ12: =(150000*0.2) -> 30000 | BA12: =(150000*0.8) -> 120000 | BB12: =(150000*0.2) -> 30000 | BK12: 600000
A13: Chesapeake | B13: 119246 | C13: Citywide Traffic Signal System Upgrades | D13: 2020 | E13: No | F13: No | G13: Canceled | AY13: =(250000*0.8)-200000 -> 0 | AZ13: =(250000*0.2)-50000 -> 0 | BA13: =(250000*0.8)-200000 -> 0 | BB13: =(250000*0.2)-50000 -> 0 | BC13: =200000-200000 -> 0 | BD13: =50000-50000 -> 0 | BE13: =200000-200000 -> 0 | BF13: =50000-50000 -> 0 | BK13: 0
A14: Chesapeake | B14: 119264 | C14: Deep Creek Elementary School Traffic Signal Improvement | D14: 2020 | E14: Yes | F14: Yes | G14: Yes | AY14: =(150000*0.8) -> 120000 | AZ14: =(150000*0.2) -> 30000 | BA14: =(150000*0.8) -> 120000 | BB14: =(150000*0.2) -> 30000 | BC14: 1440000 | BD14: 360000 | BK14: 2100000
A15: Chesapeake | B15: 119269 | C15: Centerville Turnpike/Elbow Road Intersection Improvements | D15: 2020 | E15: Yes | F15: Yes | G15: Yes | AY15: =(308000*0.8) -> 246400 | AZ15: =(308000*0.2) -> 61600 | BA15: =(1000000*0.8) -> 800000 | BB15: =(1000000*0.2) -> 200000 | BC15: =1016800-25237+25237 -> 1016800 | BD15: =254200-6309+6309 -> 254200 | BE15: =1816800-25237 -> 1791563 | BF15: =454200-6309 -> 447891 | BK15: 4818454
A16: Chesapeake | B16: 119270 | C16: Battlefield Boulevard/Johnstown Road Intersection Improvements | D16: 2020 | E16: No | F16: Yes | G16: Not yet | AY16: =(555500*0.8)-444400 -> 0 | AZ16: =(555500*0.2)-111100 -> 0 | BA16: =(741000*0.8)-592800 -> 0 | BB16: =(741000*0.2)-148200 -> 0 | BC16: 1101725 | BD16: 275431 | BK16: 1377156
A17: Chesapeake | B17: 119271 | C17: Route 460/58/13 Safety Improvements | D17: 2020 | E17: Yes | F17: Yes | G17: Yes | AY17: =(1608800*0.8) -> 1287040 | AZ17: =(1608800*0.2) -> 321760 | BA17: =(2750000*0.8) -> 2200000 | BB17: =(2750000*0.2) -> 550000 | BC17: 3930922 | BD17: 982730 | BE17: 3930922 | BF17: 982730 | BK17: 14186104
A18: Chesapeake | B18: 119409 | C18: Chesapeake Signal Timing - Phases 1-4 | D18: 2020 | E18: Yes | F18: Yes | G18: Not yet | AY18: =(150000*0.8) -> 120000 | AZ18: =(150000*0.2) -> 30000 | BA18: =(150000*0.8) -> 120000 | BB18: =(150000*0.2) -> 30000 | BC18: 120000 | BD18: 30000 | BE18: 120000 | BF18: 30000 | BK18: 600000
A19: Chesapeake | B19: 127596 | C19: Cedar Road Sidewalk - Cedar Lakes to Bartell East | D19: 2024 | E19: No | F19: Yes | G19: Not yet | BG19: 88000 | BH19: 22000 | BI19: 480000 | BJ19: 120000 | BK19: 710000
A20: Chesapeake | B20: 127828 | C20: Citywide Signal Retiming - Phases 1-5 | D20: 2024 | E20: No | F20: Yes | G20: Not yet | BG20: 120000 | BH20: 30000 | BI20: 120000 | BJ20: 30000 | BK20: 300000
A21: Gloucester County | B21: 98806 | C21: Route 17 Signal | D21: 2010 | E21: Yes | F21: No | G21: Closing | H21: =303126+576000 -> 879126 | W21: =660000*0.8-242501+(54301*0.8) -> 328939.8 | X21: =660000*0.2-60625+(54301*0.2) -> 82235.2 | Y21: =(770000*0.8)-616000 -> 0 | Z21: =(770000*0.2)-154000 -> 0 | AA21: =(770000*0.8)+155200 -> 771200 | AB21: =(770000*0.2)+38800 -> 192800 | AE21: =(546694*0.8)-227698 -> 209657.2 | AF21: =(546694*0.2)-56925 -> 52413.8 | BK21: =SUM(H21:BJ21) -> 2516372
A22: Gloucester County | B22: 110626 | C22: Great Road (Route 1208) Pedestrian Improvements | D22: ----- | E22: Yes | F22: VDOT Fredericksburg SYIP | G22: Yes | H22: 2398 | L22: 16354 | O22: 340531 | P22: 66322 | Q22: 24697 | S22: 50450 | U22: 130626 | AE22: 227698 | AF22: 56925 | AG22: 43176 | AH22: 10794 | AK22: 8494 | AL22: 2123 | AM22: =452000*0.8 -> 361600 | AN22: =452000*0.2 -> 90400 | AO22: =374400+310187 -> 684587 | AP22: =93600+77547 -> 171147 | AQ22: =65000*0.8-65000*0.8+192802 -> 192802 | AR22: =65000*0.2-65000*0.2+48200 -> 48200 | AS22: =855000*0.8-855000*0.8+467814 -> 467814 | AT22: =855000*0.2-855000*0.2+116954 -> 116954 | AU22: 69946 | AV22: 17487 | BK22: =SUM(H22:BJ22) -> 3201525
A23: Gloucester County | B23: 107414 | C23: Roaring Spring Road (Route 616) Bicycle/Pedestrian Improvements Previous UPC was UPC 102919 - changed per GL's request on 6/24/2016. Roaring Springs Bike Path and Main St Sidewalk Gap Correction | D23: 2011 | E23: Yes | F23: VDOT Fredericksburg SYIP | G23: Yes | AG23: =252000*0.8-252000*0.8+326529 -> 326529 | AH23: 81631 | AI23: =200000*0.8-200000*0.8 -> 0 | AJ23: =200000*0.2-200000*0.2 -> 0 | AM23: =452000*0.8-452000*0.8 -> 0 | AN23: =452000*0.2-452000*0.2 -> 0 | AO23: =2538000*0.8-374400-310187+168107-922374 -> 591546 | AP23: =2538000*0.2-93600-77547+42027-230593 -> 147887 | AQ23: =65000*0.8+754266 -> 806266 | AR23: =65000*0.2+188567 -> 201567 | AS23: =855000*0.8+139316 -> 823316 | AT23: =855000*0.2+34829 -> 205829 | BK23: 3184571
A24: Hampton | B24: 102866 | C24: Cunningham Drive Sidewalk Project | D24: 2011 | E24: Yes | F24: No | G24: Closing | AG24: =920000*0.8-920000*0.8 -> 0 | AH24: =920000*0.2-920000*0.2 -> 0 | AK24: =920000*0.8-(920000*0.8) -> 0 | AL24: =920000*0.2-(920000*0.2) -> 0 | AM24: =920000*0.8 -> 736000 | AN24: =920000*0.2 -> 184000 | AS24: =122390-46090 -> 76300 | AT24: =30598-11523 -> 19075 | BK24: 1015375
A25: Hampton | B25: 109410 | C25: Citywide Traffic Signal System Retimings - Phase II | D25: 2015 | E25: Yes | F25: Yes | G25: Yes | H25: =260311+56428+457068 -> 773807 | K25: =56428-56428 -> 0 | O25: =17063-17063+17063 -> 17063 | P25: =4266-4266+4266 -> 4266 | T25: =14107-14107 -> 0 | AA25: 22598 | AB25: 5649 | AO25: =1055000*0.8 -> 844000 | AP25: =1055000*0.2 -> 211000 | AS25: 46090 | AT25: 11523 | BK25: 1935996
A26: Hampton | B26: 113752 | C26: Emergency Vehicle Preemption | D26: ----- | E26: Yes | F26: No | G26: Closing | AA26: =(204000*0.8)-22598 -> 140602 | AB26: =(204000*0.2)-5649 -> 35151 | BK26: 175753
A27: Hampton | B27: 116318 | C27: Citywide Traffic Signal Upgrades Phase IV - CN only - child project of UPC 102865 | D27: N/A child project | E27: Yes | F27: No | G27: Closing | H27: =20409+271872+343976+10000+10779+376588-457068 -> 576556 | I27: 65424 | K27: 266336 | M27: =45533+3253+4882 -> 53668 | O27: =(117495*0.8)+112164+191483 -> 397643 | P27: =(117495*0.2) -> 23499 | S27: =(221499*0.8)+(6573*0.8)+(46479*0.8) -> 219640.8 | T27: =(221499*0.2)+(6573*0.2)+(46479*0.2)+44000 -> 98910.2 | AE27: =(353000*0.8) -> 282400 | AF27: =(353000*0.2) -> 70600 | AO27: =899831-899831 -> 0 | AP27: =44000-44000 -> 0 | BK27: 2054677
A28: Hampton | B28: not applicable | C28: Fast Ferry (Downtown Partnership) | BK28: 0
A29: Hampton | B29: 127827 | C29: Traffic Signal Systems Retiming | D29: 2024 | E29: No | F29: Yes | G29: Not yet | BG29: 1200000 | BH29: 300000 | BK29: 1500000
A30: HRT | B30: 109572 | C30: HRT Bus Shelters and Pedestrian Improvements in Norfolk | D30: 2015 | E30: Yes | F30: Yes | G30: Yes | H30: =318211+21274 -> 339485 | AO30: =(315000*0.8)+145722 -> 397722 | AP30: =315000*0.2 -> 63000 | AQ30: =220000*0.8 -> 176000 | AR30: =220000*0.2 -> 44000 | AS30: =150000*0.8 -> 120000 | AT30: =150000*0.2 -> 30000 | BK30: 1170207
A31: HRT | B31: 127622 | C31: Bus Vehicle Replacement | D31: 2024 | E31: No | F31: Yes | G31: Not yet | BG31: 4800000 | BH31: 1200000 | BI31: 3952400 | BJ31: 988100 | BK31: 10940500
A32: HRT | B32: T9110 | C32: HRT Bus Shelters | D32: 2010 | E32: No | F32: No | G32: Closing | M32: =30230-320 -> 29910 | N32: =7557-80 -> 7477 | S32: =150000*0.8 -> 120000 | T32: =150000*0.2 -> 30000 | U32: =28898*0.8 -> 23118.4 | V32: =28898*0.2 -> 5779.6 | BK32: =SUM(H32:BJ32) -> 216285
A33: HRT | B33: T9125 | C33: Environmental Management System | D33: 2010 | E33: Yes | F33: No | G33: Closing | U33: =150000*0.8-120000 -> 0 | V33: =150000*0.2-30000 -> 0 | W33: =150000*0.8 -> 120000 | X33: =150000*0.2-23757 -> 6243 | Y33: =150000*0.8 -> 120000 | Z33: =150000*0.2 -> 30000 | AA33: =150000*0.8 -> 120000 | AB33: =150000*0.2 -> 30000 | BK33: =SUM(H33:BJ33) -> 426243
A34: HRT | B34: T14104 | C34: goCommute (previously TRAFFIX) | D34: 2010 | E34: Yes | F34: Yes | G34: Yes | Y34: =1000000*0.8-(26877*0.8) -> 778498.4 | Z34: =1000000*0.2-(26877*0.2) -> 194624.6 | AA34: =1000000*0.8-(13497*0.8) -> 789202.4 | AB34: =1000000*0.2-(13497*0.2) -> 197300.6 | AC34: =1000000*0.8-(13497*0.8) -> 789202.4 | AD34: =1000000*0.2-(13497*0.2) -> 197300.6 | AE34: =1000000*0.8-(13497*0.8) -> 789202.4 | AF34: =1000000*0.2-(13497*0.2) -> 197300.6 | AG34: =1100000*0.8-(13497*0.8)-(100000*0.8) -> 789202.4 | AH34: =1100000*0.2-(13497*0.2)-(100000*0.2) -> 197300.6 | AI34: =1100000*0.8-(13497*0.8)-(100000*0.8) -> 789202.4 | AJ34: =1100000*0.2-(13497*0.2)-(100000*0.2) -> 197300.6 | AK34: =(986503*0.8) -> 789202.4 | AL34: =(986503*0.2) -> 197300.6 | BK34: 6892141
A35: HRT | B35: T16054 | C35: Bus Vehicle Replacement | D35: 2014 | E35: Yes | F35: Yes | G35: Yes | U35: =120000-120000 -> 0 | V35: =30000-30000 -> 0 | X35: 23757 | Z35: 21 | AA35: =84841+120000 -> 204841 | AB35: =21210+30000 -> 51210 | AD35: 576 | AM35: =1712165*0.8 -> 1369732 | AN35: =1712165*0.2 -> 342433 | AO35: =3349302*0.8 -> 2679441.6 | AP35: =3349302*0.2 -> 669860.4 | AQ35: =5740392*0.8 -> 4592313.6 | AR35: =5740392*0.2 -> 1148078.4 | AS35: =2977538*0.8 -> 2382030.4 | AT35: =2977538*0.2 -> 595507.6 | AW35: =1600000-346932 -> 1253068 | AX35: =400000-86733 -> 313267 | BE35: 3965119 | BF35: 991280 | BK35: 20582536
A36: Isle of Wight County | B36: 102951 | C36: Main Street at Route 10 Sidewalk Extension | D36: 2011/2014 | E36: Yes | F36: Yes | G36: Yes | H36: =164800+20600-164800-20600+211589+29936 -> 241525 | S36: 90 | AA36: =165000*0.8-132000 -> 0 | AB36: =165000*0.2-33000 -> 0 | AC36: =132000-165000*0.8 -> 0 | AD36: =33000-165000*0.2 -> 0 | AE36: =132000-132000+(165000*0.8) -> 132000 | AF36: =33000-33000+(165000*0.2) -> 33000 | AM36: =325233*0.8 -> 260186.4 | AN36: =325233*0.2 -> 65046.6 | AO36: 94235 | AP36: 23559 | AQ36: =69000+22098 -> 91098 | AR36: 5524 | AU36: =40000+72794 -> 112794 | AV36: =10000+18199 -> 28199 | BK36: 1087257
A37: James City County | B37: 17633 | C37: Class I Bikeway - Route 60 and Croaker Road (PE only) | D37: ----- | E37: Yes | F37: Yes | G37: Yes | H37: =27000+149597+39145+162221 -> 377963 | K37: 4870 | O37: 160000 | P37: 40000 | Q37: =744000+409600+240000 -> 1393600 | R37: =186000+102400+60000 -> 348400 | AM37: 94614 | AN37: 23654 | BK37: 2443101
A38: James City County | B38: 102944 | C38: Centerville Road & News Road | D38: 2011 | E38: Yes | F38: No | G38: Closing | H38: =50288+500000+221888+84762+447238+20188+109600+35312 -> 1469276 | AE38: =13613 -> 13613 | AF38: =3403 -> 3403 | AG38: =70000*0.8-70000*0.8+220386 -> 220386 | AH38: =14000-14000+55096 -> 55096 | AI38: =50000*0.8-50000*0.8+350000*0.8+(20235*0.8) -> 296188 | AJ38: =50000*0.2-50000*0.2+350000*0.2+(20235*0.2) -> 74047 | AM38: =(120000*0.8)-94614 -> 1386 | AN38: =(120000*0.2)-23654 -> 346 | BK38: 2133741
A39: James City County | B39: 102980 | C39: US Route 60 (Pocahontas Trail) Widening and Complete Street (project title change on 2/16/2023) | D39: 2011 | E39: Yes | F39: Yes | G39: Yes | H39: =1341382+82208 -> 1423590 | M39: 40800 | N39: 10200 | O39: 161383 | P39: 0 | S39: 750 | T39: 187 | U39: 0 | V39: 28625 | AC39: =(249242*0.8) -> 199393.6 | AD39: =(249242*0.2) -> 49848.4 | AE39: =0.8*201000 -> 160800 | AF39: =0.2*201000 -> 40200 | AI39: =0.8*3855 -> 3084 | AJ39: =0.2*3855 -> 771 | AO39: 0 | AP39: 0 | AQ39: =0.8*750000+298024 -> 898024 | AR39: =0.2*750000+74506 -> 224506 | AS39: 1533450 | AT39: =(0.2*750000)-30000+77363+186000 -> 383363 | AU39: =(4075000*0.8)+120000+324462 -> 3704462 | AV39: =(4075000*0.2)+30000+81116+1 -> 926117 | AW39: =6520000+(1100000*0.8)+219200-1417496 -> 6201704 | AX39: =1630000+(1100000*0.2)+54800-354374 -> 1550426 | AY39: 1910436 | AZ39: 477609 | BK39: 19929729
A40: James City County | B40: 127600 | C40: Richmond Road Sidewalk Infill Segment 1 | D40: 2024 | E40: No | F40: Yes | G40: Not yet | BG40: 192407 | BH40: 48102 | BK40: 240509
A41: Newport News | B41: 100856 | C41: Oakland Industrial Park/Sidewalk Phase 2 | D41: ----- | E41: Yes | F41: No | G41: Closing | H41: =5200+151188+96144+42000+15000+37000+70000+36050+195000 -> 647582 | BK41: 647582
A42: Newport News | B42: 102734 | C42: Amtrak Station Multimodal Station Development (PE only) - Project name change | D42: ----- | E42: Yes | F42: No | G42: Closing | H42: =83270-83270+613417-112843+112843 -> 613417 | K42: 45500 | M42: 106400 | N42: 26600 | AC42: =9000000*0.8-633268*0.8-2063768*0.8-36621*0.8-855975*0.8-1735555*0.8-2000000*0.8+379110*0.8-196113+196113-44713 -> 1598425.4 | AD42: =9000000*0.2-633268*0.2-2063768*0.2-36621*0.2-855975*0.2-1735555*0.2-2000000*0.2+379110*0.2-11178 -> 399606.6 | AE42: =9000000*0.8-347557*0.8-2500000*0.8-2712413*0.8-3440030*0.8 -> 0 | AF42: =9000000*0.2-347557*0.2-2500000*0.2-2712413*0.2-3440030*0.2 -> 0 | AG42: =4563768*0.8-821207*0.8-3742561*0.8 -> 0 | AH42: =4563768*0.2-821207*0.2-3742561*0.2 -> 0 | BK42: 2789949
A43: Newport News | B43: 103016 | C43: Newport News Signal Timing Improvements | D43: 2011 | E43: Yes | F43: No | G43: Closing | H43: 8570 | K43: =13612-13612+13612 -> 13612 | L43: =3403-3403+3090 -> 3090 | M43: 196 | N43: 49 | O43: 124 | P43: 31 | S43: =42153-42153+33117+9036 -> 42153 | T43: =10538-10538+22+2259 -> 2281 | W43: 23915 | X43: 5979 | AA43: =300000*0.8-240000 -> 0 | AB43: =300000*0.2-60000 -> 0 | AC43: =300000*0.8-240000 -> 0 | AD43: =300000*0.2-60000 -> 0 | AE43: =300000*0.8 -> 240000 | AF43: =300000*0.2 -> 60000 | AG43: =48000+192000-(140000*0.8) -> 128000 | AH43: =12000+48000-(140000*0.2) -> 32000 | AI43: =432000-192000+(140000*0.8)-74991 -> 277009 | AJ43: =108000-48000+(140000*0.2)-18748 -> 69252 | BK43: 906261
A44: Newport News | B44: 103059 | C44: Citywide Pedestrian Enhancements | D44: 2011 | E44: Yes | F44: Yes | G44: Yes | H44: 100000 | O44: 342906 | P44: 85726 | Q44: =(257015*0.8) -> 205612 | R44: =(257015*0.2) -> 51403 | U44: 478388 | V44: 119597 | AC44: =250000*0.8-250000*0.8 -> 0 | AD44: =250000*0.2-250000*0.2 -> 0 | AE44: =250000*0.8-250000*0.8 -> 0 | AF44: =250000*0.2-250000*0.2 -> 0 | AG44: =250000*0.8 -> 200000 | AH44: =250000*0.2 -> 50000 | AI44: =250000*0.8 -> 200000 | AJ44: =250000*0.2 -> 50000 | AK44: =500000*0.8 -> 400000 | AL44: =500000*0.2 -> 100000 | BK44: 2383632
A45: Newport News | B45: 107058 | C45: Citywide Signal System Retiming | D45: 2014 | E45: Yes | F45: Yes | G45: Yes | H45: =727919+47905 -> 775824 | O45: 54174 | P45: 13544 | R45: =38453-38453+38453 -> 38453 | T45: =120000-120000+120000 -> 120000 | U45: 38064 | V45: 9516 | W45: 37349 | X45: 9337 | AI45: =74991 -> 74991 | AJ45: =18748 -> 18748 | AM45: =500000*0.8 -> 400000 | AN45: =500000*0.2 -> 100000 | BK45: 1690000
A46: Newport News | B46: 108980 | C46: Briarfield Sidewalk | D46: 2015 | E46: Yes | F46: Yes | G46: Yes | M46: =171926 -> 171926 | N46: =42981 -> 42981 | O46: 269931 | P46: 67483 | U46: 27135 | V46: 6784 | W46: 212102 | X46: 53026 | AA46: 23814 | AB46: 5954 | AO46: =600000*0.8+331200 -> 811200 | AP46: =600000*0.2+82800 -> 202800 | BK46: 1895136
A47: Newport News | B47: 108981 | C47: Warwick Boulevard Sidewalk Widening | D47: 2015 | E47: Yes | F47: Yes | G47: Yes | M47: =63494+38999 -> 102493 | N47: =15873+9750 -> 25623 | S47: 390964 | T47: 97741 | W47: 5589 | X47: 1397 | AA47: 103057 | AB47: 25764 | AE47: 5762 | AF47: 1439 | AM47: 160292 | AN47: 40073 | AO47: =500000*0.8+321953-321953+150311 -> 550311 | AP47: =500000*0.2+80488-80488+37578 -> 137578 | BK47: 1648083
A48: Newport News | B48: 109075 | C48: Amtrak Multimodal Station - Site Granding and Drainage (child project of UPC 102734) - Project name change | D48: ----- | E48: Yes | F48: Yes - because of an issue | G48: Closing | AC48: =855975*0.8+2802937*0.8 -> 2927129.6 | AD48: =855975*0.2+2802937*0.2 -> 731782.4 | AO48: =404295-404295 -> 0 | AP48: =18285-18285 -> 0 | BK48: 3658912
A49: Newport News | B49: 109076 | C49: Amtrak Multimodal Station - Station, Platform, Parking Lot (child project of UPC 102734) - Project name change | D49: ----- | E49: Yes | F49: Yes | G49: Yes | H49: =83270-83270+112843-112843+233046 -> 233046 | AC49: =(1735555*0.8)+(2000000*0.8)-(379110*0.8)-(2802937*0.8)+196113-196113 -> 442806.4 | AD49: =(1735555*0.2)+(2000000*0.2)-(379110*0.2)-(2802937*0.2) -> 110701.6 | AE49: =3440030*0.8 -> 2752024 | AF49: =3440030*0.2 -> 688006 | AG49: =3742561*0.8 -> 2994048.8 | AH49: =3742561*0.2 -> 748512.2 | AO49: =565717-565717 -> 0 | AP49: =141429-141429 -> 0 | BK49: 7969145
A50: Newport News | B50: 111081 | C50: Newport News Traffic Adaptive Corridor Implementation Project name revised on 2/16/2023 to match VDOT title Citywide Signal System Progression (old project title) | D50: 2016 | E50: Yes | F50: Yes | G50: Yes | AQ50: =350000*0.8-200000 -> 80000 | AR50: =350000*0.2-50000 -> 20000 | AS50: =450000*0.8 -> 360000 | AT50: =450000*0.2 -> 90000 | AU50: =450000*0.8 -> 360000 | AV50: =450000*0.2 -> 90000 | BA50: =(250000*0.8) -> 200000 | BB50: =(250000*0.2) -> 50000 | BK50: 1250000
A51: Newport News | B51: 114388 | C51: Citywide ITS Upgrades (child project of UPC 100608) | D51: 2010 | E51: Yes | F51: No | G51: Closing | O51: =1402594-342906-54174-269931 -> 735583 | P51: =350649-85726-13544-67483 -> 183896 | U51: =27135-27135 -> 0 | V51: =6784-6784 -> 0 | AA51: =(300000-240000)*0.8-48000+(204000*0.8)-23814-103057-36329 -> 0 | AB51: =(300000-240000)*0.2-12000+(204000*0.2)-5954-25764-9082 -> 0 | AE51: =(240000)*0.8-144000+192000-240000 -> 0 | AF51: =(240000)*0.2-36000+48000-60000 -> 0 | AG51: =(240000)*0.8-192000 -> 0 | AH51: =(240000)*0.2-48000 -> 0 | BK51: 919479
A52: Newport News | B52: 115373 | C52: Opticom Emergency Vehicle Preemption | D52: 2018 | E52: Yes | F52: Yes | G52: Yes | AU52: =412500*0.8 -> 330000 | AV52: =412500*0.2 -> 82500 | AW52: 290000 | AX52: 72500 | BK52: 775000
A53: Newport News | B53: 115376 | C53: Permanent Message Boards | D53: 2018 | E53: Yes | F53: Yes | G53: Yes | AA53: 36330 | AB53: 9082 | AE53: 240000 | AF53: 60000 | AU53: =100000*0.8+320000 -> 400000 | AV53: =100000*0.2+80000 -> 100000 | AW53: 320000 | AX53: 80000 | BK53: 1245412
A54: Newport News | B54: 115519 | C54: Signal Timing Improvements | D54: 2018 | E54: Yes | F54: Yes | G54: Yes | AU54: =450000*0.8 -> 360000 | AV54: =450000*0.2 -> 90000 | AW54: 360000 | AX54: 90000 | AY54: =(450000*0.8) -> 360000 | AZ54: =(450000*0.2) -> 90000 | BK54: 1350000
A55: Newport News | B55: 127824 | C55: Citywide Signal Retiming | D55: 2024 | E55: No | F55: Yes | G55: Not yet | BG55: 400000 | BH55: 100000 | BI55: 400000 | BJ55: 100000 | BK55: 1000000
A56: Newport News | B56: 127825 | C56: Citywide ITS Upgrades | D56: 2024 | E56: No | F56: Yes | G56: Not yet | BG56: 400000 | BH56: 100000 | BI56: 400000 | BJ56: 100000 | BK56: 1000000
A57: Newport News | B57: 127831 | C57: Warwick Boulevard/Main Street Intersection Improvements | D57: 2024 | E57: No | F57: Yes | G57: Not yet | BG57: 152000 | BH57: 38000 | BK57: 190000
A58: Norfolk | B58: 102950 | C58: Norfolk Signal Timing Improvmeents - Phase 3 | D58: 2011 | E58: Yes | F58: No | G58: Closing | AA58: =200000*0.8-160000 -> 0 | AB58: =200000*0.2-40000 -> 0 | AC58: =200000*0.8 -> 160000 | AD58: =200000*0.2 -> 40000 | AE58: =200000*0.8 -> 160000 | AF58: =200000*0.2 -> 40000 | AG58: =200000*0.8-11976 -> 148024 | AH58: =200000*0.2-2994 -> 37006 | BK58: 585030
A59: Norfolk | B59: 105592 | C59: Signal System Improvements Phase 4C (child project of UPC 98828) | D59: N/A child project | E59: Yes | F59: No | G59: Closing | H59: =263801+82367+55075+14299 -> 415542 | AA59: =(198968*0.8) -> 159174.4 | AB59: =(198968*0.2) -> 39793.6 | AC59: =(63535*0.8)-(63535*0.8)+(45785*0.8) -> 36628 | AD59: =(63535*0.2)-(63535*0.2)+(45785*0.2) -> 9157 | AE59: =1152000-431217 -> 720783 | AF59: =288000-107805 -> 180195 | BK59: 1561273
A60: Norfolk | B60: 113866 | C60: Emergency Vehicle Preemption | D60: ----- | E60: Yes | F60: Yes | G60: Closing | AA60: =(38000*0.8) -> 30400 | AB60: =(38000*0.2) -> 7600 | AC60: =(166000*0.8) -> 132800 | AD60: =(166000*0.2) -> 33200 | BK60: 204000
A61: Norfolk | B61: 115370 | C61: Traffic Signal System Detection Upgrades | D61: 2018 | E61: Yes | F61: Yes | G61: Yes | AU61: =(1000000*0.8)-120000 -> 680000 | AV61: =(1000000*0.2)-30000 -> 170000 | BK61: 850000
A62: Norfolk | B62: 115372 | C62: Transportation Information and Decision Support System | D62: 2018 | E62: Yes | F62: Yes | G62: Yes | AU62: =100000*0.8 -> 80000 | AV62: =100000*0.2 -> 20000 | AW62: 560000 | AX62: 140000 | BK62: 800000
A63: Norfolk | B63: 115377 | C63: Traffic Signal System Communications Upgrade | D63: 2018 | E63: Yes | F63: Yes | G63: Yes | AE63: 431217 | AF63: 107805 | AG63: 11976 | AH63: 2994 | AU63: =250000*0.8 -> 200000 | AV63: =250000*0.2 -> 50000 | AW63: 600000 | AX63: 150000 | BK63: 1553992
A64: Norfolk | B64: 115518 | C64: Citywide Signal Retiming Phase 4 | D64: 2018 | E64: Yes | F64: Yes | G64: Not yet | AU64: =170000*0.8 -> 136000 | AV64: =170000*0.2 -> 34000 | AW64: 136000 | AX64: 34000 | BK64: 340000
A65: Norfolk | B65: 123639 | C65: 26th Street/Lafayette Boulevard Lane Repurposing | D65: 2022 | E65: No | F65: Yes | G65: Not yet | BC65: 253554 | BD65: 63389 | BE65: 716467 | BF65: 179117 | BG65: =716467 -> 716467 | BH65: =179117 -> 179117 | BK65: 2108111
A66: Norfolk | B66: 123766 | C66: Citywide Signal Retiming Phase V | D66: 2022 | E66: No | F66: Yes | G66: Not yet | BC66: 368000 | BD66: 92000 | BE66: 176000 | BF66: 44000 | BK66: 680000
A67: Norfolk | B67: 127595 | C67: Advanced Traffic Management System (ATMS) - Phase 5 | D67: 2024 | E67: No | F67: Yes | G67: Not yet | BG67: 131040 | BH67: 32760 | BI67: 518736 | BJ67: 129684 | BK67: 812220
A68: Norfolk | B68: 127597 | C68: Citywide Signal System Upgrades | D68: 2024 | E68: No | F68: Yes | G68: Not yet | BG68: 299520 | BH68: 74880 | BI68: 1432600 | BJ68: 358150 | BK68: 2165150
A69: Norfolk | B69: 127598 | C69: Traffic Signal Detection Upgrades | D69: 2024 | E69: No | F69: Yes | G69: Not yet | BG69: 79200 | BH69: 19800 | BI69: 665760 | BJ69: 166440 | BK69: 931200
A70: Norfolk | B70: 127599 | C70: Traffic Management Center Upgrade | D70: 2024 | E70: No | F70: Yes | G70: Not yet | BG70: 848240 | BH70: 212060 | BI70: 197360 | BJ70: 49340 | BK70: 1307000
A71: Norfolk | B71: 127826 | C71: Citywide Signal Retiming Phase VI | D71: 2024 | E71: No | F71: Yes | G71: Not yet | BG71: 35920 | BH71: 8980 | BI71: 282656 | BJ71: 70664 | BK71: 398220
A72: Poquoson | B72: 102982 | C72: South Lawson Park Bike Path | D72: 2011 | E72: Yes | F72: No | G72: Closing | AG72: =195100*0.8-195100*0.8 -> 0 | AH72: =195100*0.2-195100*0.2 -> 0 | AK72: =195100*0.8-8494 -> 147586 | AL72: =195100*0.2-2123 -> 36897 | BK72: 184483
A73: Poquoson | B73: 102999 | C73: Traffic Signal Upgrade | D73: 2011 | E73: Yes | F73: No | G73: Closing | AC73: =(18000*0.8) -> 14400 | AD73: =(18000*0.2) -> 3600 | AE73: =260000*0.8-260000*0.8 -> 0 | AF73: =260000*0.2-260000*0.2 -> 0 | AG73: =260000*0.8-43176 -> 164824 | AH73: =260000*0.2-10794 -> 41206 | BK73: 224030
A74: Port of Virginia | B74: 103928 | C74: Green Operator - Near Zero Emission Trucks | D74: 2011 | E74: Yes | F74: Yes | G74: Yes | W74: =42249*0.8 -> 33799.2 | X74: =42249*0.2 -> 8449.8 | AA74: =1000000*0.8-(500000*0.8) -> 400000 | AB74: =1000000*0.2-100000 -> 100000 | AC74: =1000000*0.8-400000 -> 400000 | AD74: =1000000*0.2-100000 -> 100000 | AE74: =1000000*0.8+(203598*0.8)-(203598*0.8) -> 800000 | AF74: =1000000*0.2+(203598*0.2)-(203598*0.2) -> 200000 | AG74: =400000+(296402*0.8)-(296402*0.8)-(250690*0.8) -> 199448 | AH74: =100000+(296402*0.2)-(296402*0.2)-(250690*0.2) -> 49862 | AI74: =400000-400000+(500000*0.8) -> 400000 | AJ74: =100000-100000+(500000*0.2) -> 100000 | AK74: =(47540*0.8) -> 38032 | AL74: =(47540*0.2) -> 9508 | AM74: =(82540*0.8)+(1899413*0.8) -> 1585562.4 | AN74: =82540*0.2+1899413*0.2 -> 396390.6 | AO74: =(120610*0.8)+(100587*0.8) -> 176957.6 | AP74: =(120610*0.2)+(100587*0.2) -> 44239.4 | AW74: 600000 | AX74: 150000 | AY74: =800000+800000 -> 1600000 | AZ74: =200000+200000 -> 400000 | BA74: =(1000000*0.8)+200000 -> 1000000 | BB74: =(1000000*0.2)+50000 -> 250000 | BC74: 800000 | BD74: 200000 | BE74: 800000 | BF74: 200000 | BG74: =800000 -> 800000 | BH74: =200000 -> 200000 | BK74: 12042249
A75: Portsmouth | B75: 98824 | C75: Ciitywide Signal Timing - Phase 4 | D75: 2010 | E75: Yes | F75: No | G75: Closing | AA75: =132000*0.8-105600 -> 0 | AB75: =132000*0.2-26400 -> 0 | AC75: =105600-132000*0.8 -> 0 | AD75: =26400-132000*0.2 -> 0 | AE75: =105600-105600+132000*0.8 -> 105600 | AF75: =26400-26400+132000*0.2 -> 26400 | BK75: 132000
A76: Portsmouth | B76: 102985 | C76: Clifford/Bart/South Street Bike Boulevard | D76: 2011 | E76: Yes | F76: Yes | G76: Closing | AG76: =500000*0.8-500000*0.8 -> 0 | AH76: =500000*0.2-500000*0.2 -> 0 | AI76: =500000*0.8-148519 -> 251481 | AJ76: =500000*0.2-37130 -> 62870 | BK76: 314351
A77: Portsmouth | B77: 103025 | C77: Signal System Citywide Upgrades | D77: 2011 | E77: Yes | F77: Yes | G77: Yes | AE77: =1500000*0.8-1500000*0.8 -> 0 | AF77: =1500000*0.2-1500000*0.2 -> 0 | AG77: =1500000*0.8-500000*0.8 -> 800000 | AH77: =1500000*0.2-500000*0.2 -> 200000 | AI77: =1000000*0.8+1000000*0.8+1000000*0.8-(800000*0.8) -> 1760000 | AJ77: =1000000*0.2+1000000*0.2+1000000*0.2-(800000*0.2) -> 440000 | AK77: =(800000*0.8) -> 640000 | AL77: =(800000*0.2) -> 160000 | BK77: 4000000
A78: Portsmouth | B78: 110757 | C78: Portsmouth Citywide Signal Timing - Phase 1 | D78: 2016 | E78: Yes | F78: Yes | G78: Closing | AQ78: =120000*0.8 -> 96000 | AR78: =120000*0.2 -> 24000 | BK78: 120000
A79: Portsmouth | B79: 113830 | C79: Portsmouth Emergency Vehicle Preemption | D79: ----- | E79: Yes | F79: Yes | G79: Yes | H79: 36899 | U79: 6143 | V79: 1536 | W79: =97809*0.8 -> 78247.2 | X79: =97809*0.2 -> 19561.8 | AC79: =(204000*0.8) -> 163200 | AD79: =(204000*0.2) -> 40800 | AI79: 148519 | AJ79: 37130 | AO79: =36899-36899 -> 0 | BK79: 532036
A80: Portsmouth | B80: 115863 | C80: Traffic Signal System Retiming (Portsmouth Signal Timing - Phases 1-4) | D80: 2018 | E80: Yes | F80: Yes | G80: Not yet | AU80: =120000*0.8 -> 96000 | AV80: =120000*0.2 -> 24000 | AW80: 96000 | AX80: 24000 | AY80: =(120000*0.8) -> 96000 | AZ80: =(120000*0.2) -> 24000 | BA80: =(120000*0.8) -> 96000 | BB80: =(120000*0.2) -> 24000 | BK80: 480000
A81: Portsmouth | B81: 119268 | C81: Citywide Traffic Signal System Upgrades | D81: 2020 | E81: No | F81: Yes | G81: Not yet | AY81: =(300000*0.8) -> 240000 | AZ81: =(300000*0.2) -> 60000 | BA81: =(250000*0.8) -> 200000 | BB81: =(250000*0.2) -> 50000 | BC81: 180000 | BD81: 45000 | BE81: 180000 | BF81: 45000 | BG81: =180000 -> 180000 | BH81: =45000 -> 45000 | BK81: 1225000
A82: Suffolk | B82: 102990 | C82: Shoulders Hill Road/Nansemond Parkway/Wilroy Road Signal Coordination and ITS Network | D82: 2011 | E82: Yes | F82: Yes | G82: Closing | AG82: =2748000*0.8-2748000*0.8 -> 0 | AH82: =2748000*0.2-2748000*0.2 -> 0 | AI82: =1641029*0.8-(128763*0.8) -> 1209812.8 | AJ82: =1641029*0.2-(128763*0.2) -> 302453.2 | AK82: =1106971*0.8-(1106971*0.8)+(183866*0.8) -> 147092.8 | AL82: =1106971*0.2-(1106971*0.2)+(183866*0.2) -> 36773.2 | BK82: 1696132
A83: Suffolk | B83: 102991 | C83: Bridge Road Traffic Signals Upgrades | D83: 2011 | E83: Yes | F83: Yes | G83: Closing | H83: =23290+2398-2398+2398 -> 25688 | J83: =9962-9962 -> 0 | L83: =6392-6392+6392+9962 -> 16354 | W83: =5589-5589+5589 -> 5589 | X83: =1397-1397+1397 -> 1397 | AE83: =150000*0.8-150000*0.8 -> 0 | AF83: =150000*0.2-150000*0.2 -> 0 | AG83: =1107000*0.8-957000*0.8 -> 120000 | AH83: =1107000*0.2-957000*0.2 -> 30000 | AI83: =1107000*0.8+(128763*0.8) -> 988610.4 | AJ83: =1107000*0.2+(128763*0.2) -> 247152.6 | AK83: =(1106971*0.8)-(183866*0.8) -> 738484 | AL83: =(1106971*0.2)-(183866*0.2) -> 184621 | AO83: =23290-23290 -> 0 | BK83: 2357896
A84: Suffolk | B84: 102992 | C84: Shoulders Hill Road Bicycle and Pedestrian Improvements | D84: 2011 | E84: Yes | F84: No | G84: Closing | AC84: =(378000*0.8) -> 302400 | AD84: =(378000*0.2) -> 75600 | AG84: =272000*0.8-272000*0.8 -> 0 | AH84: =272000*0.2-272000*0.2 -> 0 | AM84: =272000*0.8 -> 217600 | AN84: =272000*0.2 -> 54400 | AO84: =90132-56478 -> 33654 | AP84: =22533-14119 -> 8414 | BK84: 692068
A85: Suffolk | B85: 108982 | C85: Suffolk Traffic Operations Center | D85: 2015 | E85: Yes | F85: Yes | G85: Yes | AC85: =(1160691*0.8)+37471 -> 966023.8 | AD85: =(1160691*0.2)+9368 -> 241506.2 | AO85: =50000*0.8 -> 40000 | AP85: =50000*0.2 -> 10000 | AQ85: =750000*0.8 -> 600000 | AR85: =750000*0.2 -> 150000 | AS85: 844800 | AT85: 211200 | BK85: 3063530
A86: Suffolk | B86: 108983 | C86: Suffolk Citywide Signal Timings | D86: 2015 | E86: Yes | F86: Yes | G86: Yes | H86: 285345 | AO86: =(140000*0.8)+285345-285345+56478 -> 168478 | AP86: =140000*0.2+14119 -> 42119 | AQ86: =230000*0.8 -> 184000 | AR86: =230000*0.2 -> 46000 | BK86: 725942
A87: Suffolk | B87: 111083 | C87: Downtown Railroad Warning System | D87: 2016 | E87: Yes | F87: Yes | G87: Yes | AQ87: =150000*0.8 -> 120000 | AR87: =150000*0.2 -> 30000 | AS87: =500000*0.8 -> 400000 | AT87: =500000*0.2 -> 100000 | BK87: 650000
A88: Suffolk | B88: 111086 | C88: Citywide Signal System Upgrade | D88: 2016 | E88: Yes | F88: Yes | G88: Yes | AQ88: =150000*0.8-83354 -> 36646 | AR88: =150000*0.2-20838 -> 9162 | AS88: =2500000*0.8-480000 -> 1520000 | AT88: =2500000*0.2-120000 -> 380000 | BA88: =(704192*0.8) -> 563353.6 | BB88: =(704192*0.2) -> 140838.4 | BK88: 2650000
A89: Suffolk | B89: 111088 | C89: Downtown Signal System Upgrade | D89: 2016 | E89: Yes | F89: Yes | G89: Yes | AQ89: =150000*0.8-77296 -> 42704 | AR89: =150000*0.2-19324 -> 10676 | AS89: =1500000*0.8-508082 -> 691918 | AT89: =1500000*0.2-127020 -> 172980 | BA89: =(731722*0.8) -> 585377.6 | BB89: =(731722*0.2) -> 146344.4 | BK89: 1650000
A90: Suffolk | B90: 111089 | C90: Crittenden Road and Route 17 Intersection Realignment | D90: 2016 | E90: Yes | F90: Yes | G90: Yes | AQ90: =372530*0.8 -> 298024 | AR90: =372530*0.2 -> 74506 | AS90: =1500000*0.8 -> 1200000 | AT90: =1500000*0.2 -> 300000 | AU90: =2038425*0.8 -> 1630740 | AV90: =2038425*0.2 -> 407685 | BK90: 3910955
A91: Suffolk | B91: 113826 | C91: Suffolk Emergency Vehicle Preemption Development | D91: ----- | E91: Yes | F91: No | G91: Closing | AC91: =(204000*0.8)-37471 -> 125729 | AD91: =(204000*0.2)-9368 -> 31432 | BK91: 157161
A92: Suffolk | B92: 119266 | C92: Constance Road/Wilroy Intersection | D92: 2020 | E92: Yes | F92: Yes | G92: Yes | AY92: =(300000*0.8) -> 240000 | AZ92: =(300000*0.2) -> 60000 | BA92: =(2200000*0.8) -> 1760000 | BB92: =(2200000*0.2) -> 440000 | BC92: 560000 | BD92: 140000 | BK92: 3200000
A93: Suffolk | B93: 119378 | C93: Wilroy Road/Progress Road Intersection | D93: 2020 | E93: Yes | F93: Yes | G93: Yes | AY93: =(300000*0.8) -> 240000 | AZ93: =(300000*0.2) -> 60000 | BA93: =(1800000*0.8) -> 1440000 | BB93: =(1800000*0.2) -> 360000 | BC93: 320000 | BD93: 80000 | BK93: 2500000
A94: Suffolk | B94: 123640 | C94: Suffolk Transit Bus Preemption | D94: 2022 | E94: No | F94: Yes | G94: Not yet | BC94: 30240 | BD94: 7560 | BK94: 37800
A95: Virginia Beach | B95: 108955 | C95: Virginia Beach Corridor Signal Retiming | D95: 2015 | E95: Yes | F95: Yes | G95: Yes | AO95: =521180*0.8 -> 416944 | AP95: =521180*0.2 -> 104236 | BK95: 521180
A96: Virginia Beach | B96: 108959 | C96: Traffic Adaptive Corridor Implementation | D96: 2015 | E96: Yes | F96: Yes | G96: Yes | AO96: =390000*0.8+472491 -> 784491 | AP96: =390000*0.2+118123 -> 196123 | BK96: 980614
A97: Virginia Beach | B97: 108966 | C97: Rosemont Road/South Plaza Trail Intersection Improvements | D97: 2015 | E97: Yes | F97: Yes | G97: Yes | AO97: =363000*0.8+517600 -> 808000 | AP97: =363000*0.2+129400 -> 202000 | BK97: =SUM(H97:BJ97) -> 1010000
A98: Virginia Beach | B98: 110802 | C98: Dam Neck Road/Holland Road Intersection Improvements | D98: 2016 | E98: Yes | F98: Yes | G98: Yes | H98: =200000+136408 -> 336408 | AE98: =39 -> 39 | AF98: =10 -> 10 | AO98: =200000-200000 -> 0 | AQ98: =430000*0.8-200000 -> 144000 | AR98: =430000*0.2-50000 -> 36000 | AS98: =1760000*0.8 -> 1408000 | AT98: =1760000*0.2 -> 352000 | AU98: 256200 | AV98: 64050 | BK98: 2596707
A99: Virginia Beach | B99: 113818 | C99: Regional EVP (Opticom) Project | D99: ----- | E99: Yes | F99: No | G99: Closing | AC99: =(167861*0.8) -> 134288.8 | AD99: =(167861*0.2) -> 33572.2 | AE99: =(36139*0.8)-39 -> 28872.2 | AF99: =(36139*0.2)-10 -> 7217.8 | BK99: 203951
A100: Virginia Beach | B100: 115371 | C100: North Great Neck/London Bridge/Virginia Beach Boulevard Intersection Improvements | D100: 2018 | E100: Yes | F100: Yes | G100: Yes | AS100: =(400000*0.8)-320000 -> 0 | AT100: =(400000*0.2)-80000 -> 0 | AU100: =(1000000*0.8)+(757100*0.8)+488716 -> 1894396 | AV100: =(1000000*0.2)+(757100*0.2)+122179 -> 473599 | AW100: =(1157100*0.8)-(1157100*0.8) -> 0 | AX100: =(1157100*0.2)-(1157100*0.2) -> 0 | BA100: =(400000*0.8) -> 320000 | BB100: =(400000*0.2) -> 80000 | BK100: 2767995
A101: Virginia Beach | B101: 119265 | C101: Holland Road Phase II | D101: 2020 | E101: Yes | F101: Yes | G101: Not yet | AU101: 400000 | AV101: 100000 | AY101: =(300516*0.8)+377982 -> 618394.8 | AZ101: =(300516*0.2)+94496 -> 154599.2 | BA101: =(758230*0.8) -> 606584 | BB101: =(758230*0.2) -> 151646 | BK101: 2031224
A102: Virginia Beach | B102: 119280 | C102: Traffic Signal System Retiming | D102: 2020 | E102: Yes | F102: Yes | G102: Not yet | AY102: =(663000*0.8) -> 530400 | AZ102: =(663000*0.2) -> 132600 | BK102: 663000
A103: Virginia Beach | B103: 123750 | C103: Corridor Traffic Signal Retiming | D103: 2022 | E103: No | F103: Yes | G103: Not yet | BC103: 384000 | BD103: 96000 | BE103: 384000 | BF103: 96000 | BK103: 960000
A104: Virginia Beach | B104: 127823 | C104: Citywide Traffic Signal Retiming | D104: 2024 | E104: No | F104: Yes | G104: Not yet | BG104: 492800 | BH104: 123200 | BI104: 492800 | BJ104: 123200 | BK104: 1232000
A105: Virginia Beach | B105: T9145 | C105: Citywide Bus Shelter Program | D105: 2010 | E105: No | F105: No | G105: Closing | S105: =100000*0.8 -> 80000 | T105: =100000*0.2+40742 -> 60742 | U105: =(57795*0.8)-(57795*0.8)+(17053*0.8)+1 -> 13643.4 | V105: =(57795*0.2)-(57795*0.2)+(17053*0.2)-1 -> 3409.6 | BK105: 157795
A106: VDOT | B106: 115559 | C106: Denbigh Fringe Park and Ride Improvements | D106: 2018 | E106: Yes | F106: Yes | G106: Closing | AM106: =(200365*0.8) -> 160292 | AN106: =(200365*0.2) -> 40073 | AU106: =200365*0.8-(200365*0.8) -> 0 | AV106: =200365*0.2-(200365*0.2) -> 0 | BK106: 200365
A107: WATA | B107: 115378 | C107: Five Bus Purchase Replacement | D107: 2018 | E107: Yes | F107: Yes | G107: Yes | AU107: =2925000*0.8-1822003 -> 517997 | AV107: =2925000*0.2-455501 -> 129499 | AY107: =(3700000*0.8)-36363 -> 2923637 | AZ107: =(3700000*0.2)-9091 -> 730909 | BA107: =(852631*0.8) -> 682104.8 | BB107: =(852631*0.2) -> 170526.2 | BC107: 1139898 | BD107: 284975 | BK107: 6579546
A108: WATA | B108: 127621 | C108: Bus Vehicle Replacement | D108: 2024 | E108: No | F108: Yes | G108: Not yet | BG108: 640000 | BH108: 160000 | BI108: 3001922 | BJ108: 750480 | BK108: 4552402
A109: WATA | B109: T11779 | C109: Purchase Replacement CNG Buses | D109: 2011 | E109: Yes | F109: Yes | G109: Yes | AG109: =878000*0.8-878000*0.8 -> 0 | AH109: =878000*0.2-878000*0.2 -> 0 | AI109: =2195000*0.8-2195000*0.8 -> 0 | AJ109: =2195000*0.2-2195000*0.2 -> 0 | AM109: =3073000*0.8 -> 2458400 | AN109: =3073000*0.2 -> 614600 | BK109: 3073000
A110: WATA | B110: T11780 | C110: Purchase Replacement Buses | D110: 2011 | E110: Yes | F110: Yes | G110: Yes | AA110: =(17380*0.8) -> 13904 | AB110: =(17380*0.2) -> 3476 | AE110: =(125000*0.8)+(12540*0.8) -> 110032 | AF110: =(125000*0.2)+(12540*0.2) -> 27508 | AG110: =3208000*0.8-3083000*0.8+21968+(20080*0.8) -> 138032 | AH110: =3208000*0.2-3083000*0.2+5492+(20080*0.2) -> 34508 | AI110: =3272000*0.8-3272000*0.8+38032 -> 38032 | AJ110: =3272000*0.2-3272000*0.2+9508 -> 9508 | AK110: =3756137*0.8-(2465647*0.8) -> 1032392 | AL110: =3756137*0.2-(2465647*0.2) -> 258098 | AM110: =3271732*0.8 -> 2617385.6 | AN110: =3271732*0.2 -> 654346.4 | BK110: 4937222
A111: WATA | B111: T17898 | C111: WATA Transfer Center Hub | D111: 2015 | E111: Yes | F111: Yes | G111: Yes | AO111: =2500000*0.8 -> 2000000 | AP111: =2500000*0.2 -> 500000 | BK111: 2500000
A112: WATA | B112: T17890 | C112: WATA York County - Southeast Demonstration Route | D112: 2015 | E112: No | F112: Yes | G112: Check w/WATA | AO112: =597977*0.8 -> 478381.6 | AP112: =597977*0.2 -> 119595.4 | AQ112: =471666*0.8 -> 377332.8 | AR112: =471666*0.2 -> 94333.2 | AS112: =495174*0.8 -> 396139.2 | AT112: =495174*0.2 -> 99034.8 | BK112: 1564817
A113: WATA | B113: T19468 | C113: Expansion of Bus Shelters | D113: 2016 | E113: Yes | F113: Yes | G113: Yes | AQ113: =117000*0.8 -> 93600 | AR113: =117000*0.2 -> 23400 | AS113: =117000*0.8 -> 93600 | AT113: =117000*0.2 -> 23400 | BK113: 234000
A114: WATA | B114: T19479 | C114: WATA Bus Purchase (6) Replacement | D114: 2016 | E114: Yes | F114: Yes | G114: Closing | AQ114: =3142710*0.8 -> 2514168 | AR114: =3142710*0.2 -> 628542 | BK114: 3142710
A115: York County | B115: 119281 | C115: Victory Boulevard Shared Use Path | D115: 2020 | E115: Yes | F115: Yes | G115: Yes | AU115: =398102+2388048 -> 2786150 | AV115: =99526+597012 -> 696538 | AY115: =(256620*0.8)+202183-202183+192806-398102 -> 0 | AZ115: =(256620*0.2)+38825-38825+48202-99526 -> 0 | BA115: =(404130*0.8) -> 323304 | BB115: =(404130*0.2) -> 80826 | BK115: 3886818
A117: HRTPO CMAQ Reserve Account | B117: 70714 | C117: HRTPO CMAQ Reserve Account (VDOT's Balance Entry) | H117: =2398-2398 -> 0 | I117: 0 | J117: 0 | K117: 0 | L117: =16354-16354 -> 0 | M117: 1 | N117: 0 | O117: =340531-340531 -> 0 | P117: =66322-66322 -> 0 | Q117: =24697-24697 -> 0 | R117: 0 | S117: =50540-50450-90 -> 0 | T117: 0 | U117: =130626-130626 -> 0 | V117: 0 | W117: 0 | X117: 0 | Y117: 0 | Z117: 0 | AA117: 0 | AB117: 0 | AC117: 0 | AD117: 0 | AE117: =0+227698-227698 -> 0 | AF117: =0+56925-56925 -> 0 | AG117: =0+43176-43176 -> 0 | AH117: =0+10794-10794 -> 0 | AI117: 0 | AJ117: 0 | AK117: =0+8494-8494 -> 0 | AL117: =0+2123-2123 -> 0 | AM117: 0 | AN117: 0 | AO117: 0 | AP117: 0 | AQ117: =192802-192802 -> 0 | AR117: =48200-48200 -> 0 | AS117: =607130-467814-139316 -> 0 | AT117: =151783-116954-34829 -> 0 | AU117: =3288891-69946-398102-2388048-40000-72794-320001 -> 0 | AV117: =822223-17487-99526-597012-10000-18199-79999 -> 0 | AW117: =747339-747339 -> 0 | AX117: =186835-186835 -> 0 | AY117: =431450-431450 -> 0 | AZ117: =107863-107863 -> 0 | BA117: =181552-181552 -> 0 | BB117: =45388-45388 -> 0 | BC117: =939359-900899-25237 -> 13223 | BD117: =234840-225225-6309 -> 3306 | BE117: =893680-893680 -> 0 | BF117: =223420-223420 -> 0 | BG117: =733542-250858 -> 482684 | BH117: =183385-62714 -> 120671 | BI117: 431613 | BJ117: 86323 | BK117: =SUM(H117:BJ117) -> 1137821
A119: Total CMAQ Allocated to Projects by FY Column | H119: =SUM(H3:H115) -> 9580984 | I119: 65424 | J119: 0 | K119: 330318 | L119: 35798 | M119: 505393 | N119: 112930 | O119: 2479338 | P119: 484767 | Q119: 1623909 | R119: 498468 | S119: 904047.8 | T119: 409861.2 | U119: 717117.8 | V119: 175247.2 | W119: 845530.2 | X119: 211382.8 | Y119: 1018498.4 | Z119: 254645.6 | AA119: 2892860.8 | AB119: 723215.2 | AC119: 8392427 | AD119: 2098683 | AE119: 7412272.8 | AF119: 1853066.2 | AG119: 6283646.2 | AH119: 1570909.8 | AI119: 6436929.6 | AJ119: 1609232.4 | AK119: 3941283.2 | AL119: 985320.8 | AM119: 10755050.4 | AN119: =SUM(AN3:AN115) -> 2688762.6 | AO119: 11679948.8 | AP119: 2883558.2 | AQ119: 11406978.4 | AR119: 2834494.6 | AS119: 12539457.6 | AT119: 3134866.4 | AU119: 14688685 | AV119: 3672174 | AW119: 11077272 | AX119: 2778693 | AY119: 11556707.8 | AZ119: 2889177.2 | BA119: 11787842 | BB119: 2946961 | BC119: 11985139 | BD119: 2996285 | BE119: 12264071 | BF119: 3066018 | BG119: 12026452 | BH119: 3006613 | BI119: 11944234 | BJ119: 2986058
